[Event "Titled Tuesday Blitz June 07 Early 2022"]
[White "Morefield, Jason"]
[Black "Melikyan, Gnel"]
[WhiteFideId "30920825"]
[BlackFideId "54109990"]
[WhiteElo "2171"]
[BlackElo "1772"]
[Result "1-0"]
[Round "05"]
[TimeControl "180+1"]
[Date "2022.06.07"]
[WhiteClock "0:00:21"]
[BlackClock "0:00:13"]

1. e4 {[%clk 0:03:00]}  c5 {[%clk 0:02:59]} 2. Nf3 {[%clk 0:02:58]}  Nc6 {[%clk 0:02:59]} 3. d4 {[%clk 0:02:58]}  cxd4 {[%clk 0:02:59]} 4. Nxd4 {[%clk 0:02:59]}  e5 {[%clk 0:02:59]} 5. Nb5 {[%clk 0:02:57]}  Nf6 {[%clk 0:03:00]} 6. N1c3 {[%clk 0:02:47]}  d6 {[%clk 0:02:58]} 7. Nd5 {[%clk 0:02:39]}  Nxd5 {[%clk 0:02:52]} 8. exd5 {[%clk 0:02:40]}  Nb8 {[%clk 0:02:51]} 9. a4 {[%clk 0:02:32]}  a6 {[%clk 0:02:48]} 10. Na3 {[%clk 0:02:31]}  f5 {[%clk 0:02:42]} 11. Be2 {[%clk 0:02:28]}  Be7 {[%clk 0:02:41]} 12. Bd2 {[%clk 0:02:28]}  O-O {[%clk 0:02:41]} 13. Nc4 {[%clk 0:02:26]}  Nd7 {[%clk 0:02:37]} 14. a5 {[%clk 0:02:19]}  Nf6 {[%clk 0:02:35]} 15. Nb6 {[%clk 0:02:12]}  Rb8 {[%clk 0:02:35]} 16. O-O {[%clk 0:02:07]}  Bd7 {[%clk 0:02:31]} 17. c4 {[%clk 0:01:59]}  Be8 {[%clk 0:02:20]} 18. b4 {[%clk 0:01:56]}  Ne4 {[%clk 0:02:10]} 19. Be1 {[%clk 0:01:50]}  Bg6 {[%clk 0:02:00]} 20. f3 {[%clk 0:01:47]}  Nf6 {[%clk 0:01:57]} 21. Bf2 {[%clk 0:01:46]}  Nd7 {[%clk 0:01:52]} 22. c5 {[%clk 0:01:42]}  Nxb6 {[%clk 0:01:45]} 23. axb6 {[%clk 0:01:41]}  Rc8 {[%clk 0:01:38]} 24. c6 {[%clk 0:01:29]}  bxc6 {[%clk 0:01:05]} 25. b7 {[%clk 0:01:28]}  Rc7 {[%clk 0:01:02]} 26. dxc6 {[%clk 0:01:28]}  d5 {[%clk 0:01:02]} 27. Bb6 {[%clk 0:01:10]}  d4 {[%clk 0:00:43]} 28. Rxa6 {[%clk 0:01:06]}  Qd6 {[%clk 0:00:39]} 29. Bc4+ {[%clk 0:00:54]}  Bf7 {[%clk 0:00:37]} 30. Bxf7+ {[%clk 0:00:52]}  Kxf7 {[%clk 0:00:36]} 31. Qb3+ {[%clk 0:00:50]}  Kg6 {[%clk 0:00:35]} 32. Bxc7 {[%clk 0:00:47]}  Qxc7 {[%clk 0:00:35]} 33. Ra8 {[%clk 0:00:46]}  Qxc6 {[%clk 0:00:21]} 34. Rxf8 {[%clk 0:00:43]}  Qxb7 {[%clk 0:00:20]} 35. Qf7+ {[%clk 0:00:43]}  Kh6 {[%clk 0:00:21]} 36. Qxf5 {[%clk 0:00:41]}  Qxb4 {[%clk 0:00:17]} 37. Rh8 {[%clk 0:00:32]}  g6 {[%clk 0:00:17]} 38. Qh3+ {[%clk 0:00:30]}  Kg5 {[%clk 0:00:16]} 39. Rxh7 {[%clk 0:00:28]}  Kf4 {[%clk 0:00:15]} 40. Qg4+ {[%clk 0:00:20]}  Ke3 {[%clk 0:00:15]} 41. Qe4+ {[%clk 0:00:21]}  Kd2 {[%clk 0:00:15]} 42. Rf2+ {[%clk 0:00:20]}  Kc3 {[%clk 0:00:13]} 43. Qc2# {[%clk 0:00:21]} 1-0


[Site "https://www.chess.com"]

[Event "Titled Tuesday Blitz June 07 Early 2022"]
[White "Nesterov, Arseniy"]
[Black "Kamsky, Gata"]
[WhiteFideId "24198455"]
[BlackFideId "2000024"]
[WhiteElo "2489"]
[BlackElo "2645"]
[Result "1/2-1/2"]
[Round "05"]
[TimeControl "180+1"]
[Date "2022.06.07"]
[WhiteClock "0:00:05"]
[BlackClock "0:00:15"]

1. d4 {[%clk 0:03:00]}  d5 {[%clk 0:02:57]} 2. c4 {[%clk 0:03:00]}  c6 {[%clk 0:02:56]} 3. Nc3 {[%clk 0:02:59]}  Nf6 {[%clk 0:02:55]} 4. e3 {[%clk 0:02:58]}  g6 {[%clk 0:02:50]} 5. Nf3 {[%clk 0:02:57]}  Bg7 {[%clk 0:02:48]} 6. h3 {[%clk 0:02:57]}  O-O {[%clk 0:02:44]} 7. Bd3 {[%clk 0:02:55]}  a6 {[%clk 0:02:40]} 8. O-O {[%clk 0:02:47]}  dxc4 {[%clk 0:02:38]} 9. Bxc4 {[%clk 0:02:47]}  b5 {[%clk 0:02:38]} 10. Bb3 {[%clk 0:02:28]}  Nbd7 {[%clk 0:02:37]} 11. e4 {[%clk 0:01:38]}  b4 {[%clk 0:02:28]} 12. Na4 {[%clk 0:01:30]}  Nxe4 {[%clk 0:02:26]} 13. Re1 {[%clk 0:01:27]}  Nef6 {[%clk 0:02:16]} 14. Bg5 {[%clk 0:01:24]}  e6 {[%clk 0:01:56]} 15. Ne5 {[%clk 0:01:20]}  Nxe5 {[%clk 0:01:41]} 16. dxe5 {[%clk 0:01:17]}  Qxd1 {[%clk 0:01:40]} 17. Raxd1 {[%clk 0:01:18]}  Nd5 {[%clk 0:01:41]} 18. Rc1 {[%clk 0:01:18]}  h6 {[%clk 0:01:36]} 19. Bd2 {[%clk 0:01:14]}  a5 {[%clk 0:01:35]} 20. Rxc6 {[%clk 0:01:09]}  Bb7 {[%clk 0:01:33]} 21. Rcc1 {[%clk 0:00:54]}  Rad8 {[%clk 0:01:18]} 22. Nc5 {[%clk 0:00:53]}  Ba8 {[%clk 0:01:17]} 23. Rcd1 {[%clk 0:00:43]}  g5 {[%clk 0:01:12]} 24. Ba4 {[%clk 0:00:28]}  Rc8 {[%clk 0:01:02]} 25. Nd7 {[%clk 0:00:24]}  Rfd8 {[%clk 0:01:01]} 26. Rc1 {[%clk 0:00:22]}  Bb7 {[%clk 0:00:48]} 27. a3 {[%clk 0:00:20]}  Rxc1 {[%clk 0:00:39]} 28. Rxc1 {[%clk 0:00:19]}  Bc8 {[%clk 0:00:40]} 29. Nf6+ {[%clk 0:00:17]}  Nxf6 {[%clk 0:00:39]} 30. exf6 {[%clk 0:00:17]}  Bxf6 {[%clk 0:00:38]} 31. axb4 {[%clk 0:00:18]}  axb4 {[%clk 0:00:33]} 32. Bxb4 {[%clk 0:00:17]}  Bxb2 {[%clk 0:00:31]} 33. Rb1 {[%clk 0:00:12]}  Bf6 {[%clk 0:00:29]} 34. Ba5 {[%clk 0:00:11]}  Rd5 {[%clk 0:00:24]} 35. Bc7 {[%clk 0:00:08]}  Bd7 {[%clk 0:00:24]} 36. Bxd7 {[%clk 0:00:07]}  Rxd7 {[%clk 0:00:24]} 37. Ba5 {[%clk 0:00:07]}  Kg7 {[%clk 0:00:24]} 38. Kf1 {[%clk 0:00:07]}  h5 {[%clk 0:00:25]} 39. Ke2 {[%clk 0:00:06]}  Kg6 {[%clk 0:00:25]} 40. g4 {[%clk 0:00:05]}  Rd5 {[%clk 0:00:24]} 41. Bd2 {[%clk 0:00:05]}  Re5+ {[%clk 0:00:23]} 42. Be3 {[%clk 0:00:05]}  Ra5 {[%clk 0:00:23]} 43. Kf3 {[%clk 0:00:05]}  Ra3 {[%clk 0:00:22]} 44. Ke4 {[%clk 0:00:05]}  hxg4 {[%clk 0:00:21]} 45. hxg4 {[%clk 0:00:06]}  Ra4+ {[%clk 0:00:22]} 46. Kf3 {[%clk 0:00:06]}  Be5 {[%clk 0:00:22]} 47. Rb7 {[%clk 0:00:05]}  Bd4 {[%clk 0:00:21]} 48. Bxd4 {[%clk 0:00:04]}  Rxd4 {[%clk 0:00:21]} 49. Kg3 {[%clk 0:00:05]}  Kf6 {[%clk 0:00:20]} 50. f3 {[%clk 0:00:05]}  Rd3 {[%clk 0:00:20]} 51. Kf2 {[%clk 0:00:05]}  Ra3 {[%clk 0:00:19]} 52. Kg3 {[%clk 0:00:05]}  Kg6 {[%clk 0:00:20]} 53. Kf2 {[%clk 0:00:05]}  f5 {[%clk 0:00:20]} 54. gxf5+ {[%clk 0:00:06]}  exf5 {[%clk 0:00:20]} 55. Rb5 {[%clk 0:00:07]}  f4 {[%clk 0:00:18]} 56. Rb2 {[%clk 0:00:03]}  Kh5 {[%clk 0:00:18]} 57. Kg2 {[%clk 0:00:04]}  Kh4 {[%clk 0:00:18]} 58. Rc2 {[%clk 0:00:04]}  Rd3 {[%clk 0:00:18]} 59. Rb2 {[%clk 0:00:04]}  g4 {[%clk 0:00:17]} 60. fxg4 {[%clk 0:00:04]}  Kxg4 {[%clk 0:00:17]} 61. Kf2 {[%clk 0:00:04]}  Rh3 {[%clk 0:00:17]} 62. Kg2 {[%clk 0:00:04]}  f3+ {[%clk 0:00:17]} 63. Kg1 {[%clk 0:00:04]}  Kg3 {[%clk 0:00:18]} 64. Rg2+ {[%clk 0:00:05]}  fxg2 {[%clk 0:00:15]} 1/2-1/2


[Site "https://www.chess.com"]

[Event "Titled Tuesday Blitz June 07 Early 2022"]
[White "Niemann, Hans Moke"]
[Black "Barp, Alberto"]
[WhiteFideId "2093596"]
[BlackFideId "872555"]
[WhiteElo "2632"]
[BlackElo "2229"]
[Result "1-0"]
[Round "05"]
[TimeControl "180+1"]
[Date "2022.06.07"]
[WhiteClock "0:01:45"]
[BlackClock "0:00:30"]

1. d4 {[%clk 0:03:00]}  Nf6 {[%clk 0:02:43]} 2. Nc3 {[%clk 0:03:01]}  e6 {[%clk 0:02:40]} 3. Bf4 {[%clk 0:03:00]}  Bb4 {[%clk 0:02:39]} 4. Qd3 {[%clk 0:02:59]}  Nd5 {[%clk 0:02:35]} 5. Bd2 {[%clk 0:02:58]}  b6 {[%clk 0:02:33]} 6. e4 {[%clk 0:02:57]}  Nxc3 {[%clk 0:02:29]} 7. bxc3 {[%clk 0:02:56]}  Ba6 {[%clk 0:02:17]} 8. Qg3 {[%clk 0:02:55]}  Bxf1 {[%clk 0:02:18]} 9. Qxg7 {[%clk 0:02:54]}  Bf8 {[%clk 0:02:12]} 10. Qxh8 {[%clk 0:02:49]}  Bxg2 {[%clk 0:02:12]} 11. Nf3 {[%clk 0:02:22]}  Bxh1 {[%clk 0:01:21]} 12. Bg5 {[%clk 0:02:21]}  Qc8 {[%clk 0:01:22]} 13. Bh6 {[%clk 0:02:19]}  Ke7 {[%clk 0:01:21]} 14. Ng5 {[%clk 0:02:10]}  Nc6 {[%clk 0:01:09]} 15. Nxh7 {[%clk 0:01:55]}  Bxh6 {[%clk 0:01:05]} 16. Qf6+ {[%clk 0:01:55]}  Kd6 {[%clk 0:00:57]} 17. Qxh6 {[%clk 0:01:56]}  Qg8 {[%clk 0:00:38]} 18. Qf4+ {[%clk 0:01:53]}  Ke7 {[%clk 0:00:34]} 19. Qh4+ {[%clk 0:01:53]}  Kd6 {[%clk 0:00:31]} 20. e5+ {[%clk 0:01:46]}  Kd5 {[%clk 0:00:30]} 21. Nf6+ {[%clk 0:01:45]} 1-0


[Site "https://www.chess.com"]

[Event "Titled Tuesday Blitz June 07 Early 2022"]
[White "Rosen, Eric"]
[Black "Bortnyk, Mykola"]
[WhiteFideId "2032562"]
[BlackFideId "14120836"]
[WhiteElo "2362"]
[BlackElo "2582"]
[Result "1-0"]
[Round "05"]
[TimeControl "180+1"]
[Date "2022.06.07"]
[WhiteClock "0:00:08"]
[BlackClock "0:00:14"]

1. d4 {[%clk 0:03:00]}  d5 {[%clk 0:02:58]} 2. Bf4 {[%clk 0:03:00]}  c5 {[%clk 0:02:58]} 3. e3 {[%clk 0:03:00]}  cxd4 {[%clk 0:02:58]} 4. exd4 {[%clk 0:03:00]}  Nc6 {[%clk 0:02:58]} 5. Nf3 {[%clk 0:03:00]}  Bf5 {[%clk 0:02:59]} 6. Nbd2 {[%clk 0:03:00]}  e6 {[%clk 0:02:58]} 7. c3 {[%clk 0:03:01]}  Qd7 {[%clk 0:02:48]} 8. Be2 {[%clk 0:02:56]}  f6 {[%clk 0:02:47]} 9. h3 {[%clk 0:02:48]}  g5 {[%clk 0:02:45]} 10. Bh2 {[%clk 0:02:47]}  h5 {[%clk 0:02:46]} 11. Nb3 {[%clk 0:02:41]}  Rd8 {[%clk 0:02:16]} 12. Qd2 {[%clk 0:02:38]}  b6 {[%clk 0:02:10]} 13. a4 {[%clk 0:02:37]}  Bd6 {[%clk 0:02:10]} 14. Bxd6 {[%clk 0:02:32]}  Qxd6 {[%clk 0:02:10]} 15. Bd3 {[%clk 0:02:29]}  Nge7 {[%clk 0:02:10]} 16. Nc1 {[%clk 0:02:29]}  Kf7 {[%clk 0:02:07]} 17. Ne2 {[%clk 0:02:18]}  Na5 {[%clk 0:01:56]} 18. Rd1 {[%clk 0:02:17]}  Rdg8 {[%clk 0:01:51]} 19. b4 {[%clk 0:02:13]}  Bxd3 {[%clk 0:01:48]} 20. Qxd3 {[%clk 0:02:12]}  Nc4 {[%clk 0:01:48]} 21. Qc2 {[%clk 0:01:58]}  Nf5 {[%clk 0:01:48]} 22. Nd2 {[%clk 0:01:57]}  Rc8 {[%clk 0:01:38]} 23. Nxc4 {[%clk 0:01:53]}  Rxc4 {[%clk 0:01:39]} 24. Qd3 {[%clk 0:01:52]}  Kg7 {[%clk 0:01:29]} 25. O-O {[%clk 0:01:42]}  Rh6 {[%clk 0:01:26]} 26. Rfe1 {[%clk 0:01:37]}  Rc8 {[%clk 0:01:25]} 27. Ng3 {[%clk 0:01:33]}  Nxg3 {[%clk 0:01:23]} 28. fxg3 {[%clk 0:01:34]}  Rhh8 {[%clk 0:01:05]} 29. Re3 {[%clk 0:01:33]}  Rce8 {[%clk 0:01:03]} 30. Rde1 {[%clk 0:01:29]}  Re7 {[%clk 0:01:03]} 31. Qe2 {[%clk 0:01:23]}  Kf7 {[%clk 0:01:02]} 32. Rf1 {[%clk 0:01:19]}  Kg7 {[%clk 0:01:00]} 33. Qf3 {[%clk 0:01:18]}  Rh6 {[%clk 0:01:00]} 34. Rfe1 {[%clk 0:01:19]}  a6 {[%clk 0:00:52]} 35. Qe2 {[%clk 0:01:18]}  Kf7 {[%clk 0:00:30]} 36. Qxa6 {[%clk 0:01:18]}  Rh8 {[%clk 0:00:30]} 37. Qd3 {[%clk 0:01:14]}  Qd7 {[%clk 0:00:23]} 38. Rf1 {[%clk 0:01:13]}  Rh6 {[%clk 0:00:21]} 39. Ref3 {[%clk 0:01:03]}  Kg7 {[%clk 0:00:17]} 40. Qc2 {[%clk 0:00:56]}  f5 {[%clk 0:00:16]} 41. h4 {[%clk 0:00:50]}  gxh4 {[%clk 0:00:16]} 42. gxh4 {[%clk 0:00:50]}  Rg6 {[%clk 0:00:17]} 43. Re3 {[%clk 0:00:41]}  Kh6 {[%clk 0:00:15]} 44. Qd2 {[%clk 0:00:38]}  Kh7 {[%clk 0:00:16]} 45. Qe2 {[%clk 0:00:39]}  Reg7 {[%clk 0:00:12]} 46. Qxh5+ {[%clk 0:00:35]}  Rh6 {[%clk 0:00:13]} 47. Qe2 {[%clk 0:00:34]}  Rxh4 {[%clk 0:00:11]} 48. Rxe6 {[%clk 0:00:30]}  Rhg4 {[%clk 0:00:10]} 49. Rf2 {[%clk 0:00:20]}  Qxa4 {[%clk 0:00:10]} 50. Qd2 {[%clk 0:00:13]}  Qa1+ {[%clk 0:00:09]} 51. Re1 {[%clk 0:00:13]}  Qa8 {[%clk 0:00:07]} 52. Qd3 {[%clk 0:00:12]}  Qc8 {[%clk 0:00:05]} 53. Ree2 {[%clk 0:00:12]}  R4g5 {[%clk 0:00:05]} 54. Qh3+ {[%clk 0:00:12]}  Kg6 {[%clk 0:00:04]} 55. Re5 {[%clk 0:00:12]}  Rf7 {[%clk 0:00:04]} 56. Rfe2 {[%clk 0:00:11]}  Rh5 {[%clk 0:00:02]} 57. Qg3+ {[%clk 0:00:10]}  Rg5 {[%clk 0:00:02]} 58. Re6+ {[%clk 0:00:11]}  Rf6 {[%clk 0:00:03]} 59. Rxf6+ {[%clk 0:00:10]}  Kxf6 {[%clk 0:00:04]} 60. Qe5+ {[%clk 0:00:10]}  Kg6 {[%clk 0:00:04]} 61. Qe6+ {[%clk 0:00:08]}  Qxe6 {[%clk 0:00:04]} 62. Rxe6+ {[%clk 0:00:09]}  Kh5 {[%clk 0:00:05]} 63. Rxb6 {[%clk 0:00:09]}  Rg3 {[%clk 0:00:06]} 64. Rc6 {[%clk 0:00:09]}  Rd3 {[%clk 0:00:06]} 65. b5 {[%clk 0:00:09]}  Rd1+ {[%clk 0:00:07]} 66. Kf2 {[%clk 0:00:09]}  Rb1 {[%clk 0:00:08]} 67. Rc5 {[%clk 0:00:09]}  Kg4 {[%clk 0:00:09]} 68. Rxd5 {[%clk 0:00:07]}  Rb2+ {[%clk 0:00:09]} 69. Kf1 {[%clk 0:00:06]}  Rb1+ {[%clk 0:00:08]} 70. Ke2 {[%clk 0:00:06]}  Rb2+ {[%clk 0:00:09]} 71. Kd3 {[%clk 0:00:06]}  Rxg2 {[%clk 0:00:10]} 72. c4 {[%clk 0:00:04]}  Rg3+ {[%clk 0:00:10]} 73. Kc2 {[%clk 0:00:04]}  f4 {[%clk 0:00:10]} 74. Rd8 {[%clk 0:00:04]}  f3 {[%clk 0:00:10]} 75. b6 {[%clk 0:00:04]}  f2 {[%clk 0:00:10]} 76. Rg8+ {[%clk 0:00:04]}  Kh3 {[%clk 0:00:10]} 77. Rf8 {[%clk 0:00:04]}  Kg2 {[%clk 0:00:10]} 78. Rxf2+ {[%clk 0:00:05]}  Kxf2 {[%clk 0:00:11]} 79. b7 {[%clk 0:00:05]}  Rg8 {[%clk 0:00:11]} 80. c5 {[%clk 0:00:05]}  Ke3 {[%clk 0:00:11]} 81. c6 {[%clk 0:00:06]}  Kxd4 {[%clk 0:00:11]} 82. c7 {[%clk 0:00:06]}  Rg2+ {[%clk 0:00:11]} 83. Kb3 {[%clk 0:00:06]}  Rg3+ {[%clk 0:00:12]} 84. Kb4 {[%clk 0:00:06]}  Rg1 {[%clk 0:00:12]} 85. c8=Q {[%clk 0:00:06]}  Rb1+ {[%clk 0:00:12]} 86. Ka5 {[%clk 0:00:07]}  Ra1+ {[%clk 0:00:13]} 87. Kb6 {[%clk 0:00:07]}  Rb1+ {[%clk 0:00:14]} 88. Kc7 {[%clk 0:00:08]}  Rc1+ {[%clk 0:00:14]} 89. Kd7 {[%clk 0:00:08]} 1-0


[Site "https://www.chess.com"]

[Event "Titled Tuesday Blitz June 07 Early 2022"]
[White "Santos Ruiz, Miguel"]
[Black "Svane, Frederik"]
[WhiteFideId "22291482"]
[BlackFideId "12923044"]
[WhiteElo "2475"]
[BlackElo "2459"]
[Result "1-0"]
[Round "05"]
[TimeControl "180+1"]
[Date "2022.06.07"]
[WhiteClock "0:00:10"]
[BlackClock "0:00:05"]

1. Nf3 {[%clk 0:03:00]}  c5 {[%clk 0:02:50]} 2. e4 {[%clk 0:02:59]}  e6 {[%clk 0:02:46]} 3. d4 {[%clk 0:02:58]}  cxd4 {[%clk 0:02:47]} 4. Nxd4 {[%clk 0:02:58]}  Nc6 {[%clk 0:02:47]} 5. Nc3 {[%clk 0:02:58]}  a6 {[%clk 0:02:48]} 6. a3 {[%clk 0:02:53]}  d6 {[%clk 0:02:44]} 7. Nxc6 {[%clk 0:02:47]}  bxc6 {[%clk 0:02:45]} 8. h4 {[%clk 0:02:47]}  Nf6 {[%clk 0:02:39]} 9. h5 {[%clk 0:02:47]}  h6 {[%clk 0:02:39]} 10. Bd3 {[%clk 0:02:47]}  d5 {[%clk 0:02:39]} 11. Qf3 {[%clk 0:02:47]}  Bc5 {[%clk 0:02:36]} 12. Qg3 {[%clk 0:02:45]}  Kf8 {[%clk 0:02:35]} 13. Bd2 {[%clk 0:02:30]}  Bb7 {[%clk 0:02:34]} 14. O-O-O {[%clk 0:02:26]}  Nd7 {[%clk 0:02:23]} 15. f4 {[%clk 0:02:23]}  Qe7 {[%clk 0:02:19]} 16. Nb1 {[%clk 0:02:12]}  a5 {[%clk 0:02:15]} 17. e5 {[%clk 0:02:00]}  Ba6 {[%clk 0:02:09]} 18. Rhf1 {[%clk 0:01:56]}  Bxd3 {[%clk 0:02:07]} 19. Qxd3 {[%clk 0:01:53]}  Bb6 {[%clk 0:01:49]} 20. Nc3 {[%clk 0:01:34]}  Nc5 {[%clk 0:01:35]} 21. Qe2 {[%clk 0:01:19]}  Rb8 {[%clk 0:01:35]} 22. f5 {[%clk 0:01:18]}  exf5 {[%clk 0:01:35]} 23. Rxf5 {[%clk 0:01:18]}  Ke8 {[%clk 0:01:22]} 24. g4 {[%clk 0:01:11]}  Ne6 {[%clk 0:01:20]} 25. Na4 {[%clk 0:01:09]}  Bc7 {[%clk 0:01:16]} 26. Be3 {[%clk 0:00:55]}  Rf8 {[%clk 0:00:50]} 27. Qa6 {[%clk 0:00:49]}  Qd7 {[%clk 0:00:44]} 28. Bc5 {[%clk 0:00:43]}  Rg8 {[%clk 0:00:36]} 29. Rdf1 {[%clk 0:00:39]}  Nd8 {[%clk 0:00:34]} 30. Bd4 {[%clk 0:00:27]}  Qc8 {[%clk 0:00:30]} 31. Qe2 {[%clk 0:00:24]}  Ne6 {[%clk 0:00:24]} 32. c3 {[%clk 0:00:20]}  Nd8 {[%clk 0:00:14]} 33. Nc5 {[%clk 0:00:20]}  Bb6 {[%clk 0:00:14]} 34. e6 {[%clk 0:00:18]}  f6 {[%clk 0:00:13]} 35. e7 {[%clk 0:00:18]}  Nf7 {[%clk 0:00:12]} 36. Bxf6 {[%clk 0:00:14]}  gxf6 {[%clk 0:00:11]} 37. Rxf6 {[%clk 0:00:15]}  Rg7 {[%clk 0:00:11]} 38. Ne6 {[%clk 0:00:14]}  Rh7 {[%clk 0:00:10]} 39. Qd3 {[%clk 0:00:14]}  Rh8 {[%clk 0:00:05]} 40. Ng7+ {[%clk 0:00:13]}  Kxe7 {[%clk 0:00:05]} 41. Rxf7+ {[%clk 0:00:13]}  Kd8 {[%clk 0:00:05]} 42. Rf8+ {[%clk 0:00:10]} 1-0


[Site "https://www.chess.com"]

[Event "Titled Tuesday Blitz June 07 Early 2022"]
[White "Terry, Renato"]
[Black "Thavandiran, Shiyam"]
[WhiteFideId "3803457"]
[BlackFideId "2605058"]
[WhiteElo "2577"]
[BlackElo "2357"]
[Result "1-0"]
[Round "05"]
[TimeControl "180+1"]
[Date "2022.06.07"]
[WhiteClock "0:01:32"]
[BlackClock "0:01:16"]

1. d4 {[%clk 0:03:00]}  Nf6 {[%clk 0:02:44]} 2. Bg5 {[%clk 0:02:55]}  b6 {[%clk 0:02:39]} 3. c4 {[%clk 0:02:50]}  Bb7 {[%clk 0:02:24]} 4. f3 {[%clk 0:02:48]}  d5 {[%clk 0:02:14]} 5. cxd5 {[%clk 0:02:24]}  Qxd5 {[%clk 0:02:15]} 6. Bxf6 {[%clk 0:02:24]}  exf6 {[%clk 0:02:15]} 7. e4 {[%clk 0:02:24]}  Qg5 {[%clk 0:02:15]} 8. Nc3 {[%clk 0:02:18]}  Qe3+ {[%clk 0:02:12]} 9. Nge2 {[%clk 0:02:15]}  Nc6 {[%clk 0:02:09]} 10. Nd5 {[%clk 0:02:03]}  Bb4+ {[%clk 0:02:09]} 11. Nxb4 {[%clk 0:02:04]}  Nxb4 {[%clk 0:02:09]} 12. Qa4+ {[%clk 0:02:04]}  Nc6 {[%clk 0:02:08]} 13. d5 {[%clk 0:02:04]}  O-O-O {[%clk 0:01:59]} 14. dxc6 {[%clk 0:02:02]}  Rd3 {[%clk 0:01:37]} 15. cxb7+ {[%clk 0:01:55]}  Kb8 {[%clk 0:01:37]} 16. Rd1 {[%clk 0:01:53]}  Rhd8 {[%clk 0:01:34]} 17. Rxd3 {[%clk 0:01:51]}  Rxd3 {[%clk 0:01:35]} 18. Qc2 {[%clk 0:01:44]}  b5 {[%clk 0:01:17]} 19. Qc1 {[%clk 0:01:39]}  Qb6 {[%clk 0:01:17]} 20. Nc3 {[%clk 0:01:33]}  Re3+ {[%clk 0:01:17]} 21. Be2 {[%clk 0:01:33]}  c6 {[%clk 0:01:16]} 22. Nd1 {[%clk 0:01:32]} 1-0


[Site "https://www.chess.com"]

[Event "Titled Tuesday Blitz June 07 Early 2022"]
[White "Urazayev, Arystanbek"]
[Black "Van Foreest, Jorden"]
[WhiteFideId "13709810"]
[BlackFideId "1039784"]
[WhiteElo "2422"]
[BlackElo "2609"]
[Result "0-1"]
[Round "05"]
[TimeControl "180+1"]
[Date "2022.06.07"]
[WhiteClock "0:00:01"]
[BlackClock "0:00:56"]

1. e4 {[%clk 0:03:00]}  c5 {[%clk 0:02:57]} 2. Nf3 {[%clk 0:03:01]}  d6 {[%clk 0:02:52]} 3. d4 {[%clk 0:03:00]}  cxd4 {[%clk 0:02:53]} 4. Nxd4 {[%clk 0:03:01]}  Nf6 {[%clk 0:02:53]} 5. Nc3 {[%clk 0:03:02]}  Nc6 {[%clk 0:02:53]} 6. Bg5 {[%clk 0:02:58]}  Bd7 {[%clk 0:02:51]} 7. Qd3 {[%clk 0:02:55]}  Qb6 {[%clk 0:02:51]} 8. Bxf6 {[%clk 0:02:49]}  gxf6 {[%clk 0:02:50]} 9. O-O-O {[%clk 0:02:43]}  Qxd4 {[%clk 0:02:48]} 10. Qxd4 {[%clk 0:02:44]}  Nxd4 {[%clk 0:02:49]} 11. Rxd4 {[%clk 0:02:45]}  a6 {[%clk 0:02:50]} 12. Nd5 {[%clk 0:02:39]}  Rb8 {[%clk 0:02:46]} 13. Be2 {[%clk 0:02:25]}  h5 {[%clk 0:02:40]} 14. Kb1 {[%clk 0:02:14]}  Bg7 {[%clk 0:02:40]} 15. Rd3 {[%clk 0:02:08]}  Bc6 {[%clk 0:02:40]} 16. Rg3 {[%clk 0:02:02]}  Kf8 {[%clk 0:02:33]} 17. Rd1 {[%clk 0:01:38]}  h4 {[%clk 0:02:32]} 18. Rh3 {[%clk 0:01:29]}  e6 {[%clk 0:02:26]} 19. Nc3 {[%clk 0:01:28]}  Ke7 {[%clk 0:02:26]} 20. Rhd3 {[%clk 0:01:24]}  Rhd8 {[%clk 0:02:26]} 21. h3 {[%clk 0:01:21]}  b5 {[%clk 0:02:25]} 22. Bf3 {[%clk 0:01:20]}  b4 {[%clk 0:02:17]} 23. Ne2 {[%clk 0:01:20]}  Bb5 {[%clk 0:02:18]} 24. R3d2 {[%clk 0:01:21]}  Bh6 {[%clk 0:02:18]} 25. Rd4 {[%clk 0:01:17]}  a5 {[%clk 0:02:16]} 26. Re1 {[%clk 0:01:01]}  Rdc8 {[%clk 0:02:13]} 27. Rdd1 {[%clk 0:01:00]}  Rb6 {[%clk 0:02:12]} 28. Nd4 {[%clk 0:01:00]}  Ba4 {[%clk 0:02:10]} 29. Re2 {[%clk 0:00:45]}  Bf4 {[%clk 0:02:09]} 30. Nb3 {[%clk 0:00:41]}  Bb5 {[%clk 0:02:08]} 31. Ree1 {[%clk 0:00:25]}  a4 {[%clk 0:02:08]} 32. Nc1 {[%clk 0:00:22]}  Rbc6 {[%clk 0:01:59]} 33. Be2 {[%clk 0:00:20]}  Bxe2 {[%clk 0:01:51]} 34. Rxe2 {[%clk 0:00:20]}  Rg8 {[%clk 0:01:51]} 35. Nd3 {[%clk 0:00:20]}  Bh6 {[%clk 0:01:43]} 36. Nxb4 {[%clk 0:00:16]}  Rb6 {[%clk 0:01:43]} 37. a3 {[%clk 0:00:15]}  Rxg2 {[%clk 0:01:43]} 38. Ka2 {[%clk 0:00:14]}  Bf4 {[%clk 0:01:37]} 39. Nd3 {[%clk 0:00:11]}  Be5 {[%clk 0:01:31]} 40. Rde1 {[%clk 0:00:12]}  Bd4 {[%clk 0:01:12]} 41. c3 {[%clk 0:00:11]}  Bc5 {[%clk 0:01:10]} 42. Nxc5 {[%clk 0:00:08]}  dxc5 {[%clk 0:01:10]} 43. e5 {[%clk 0:00:07]}  fxe5 {[%clk 0:01:10]} 44. Rd1 {[%clk 0:00:06]}  f5 {[%clk 0:01:09]} 45. Rdd2 {[%clk 0:00:05]}  e4 {[%clk 0:01:09]} 46. Rc2 {[%clk 0:00:03]}  Rh2 {[%clk 0:01:09]} 47. Re3 {[%clk 0:00:03]}  Rd6 {[%clk 0:01:09]} 48. b3 {[%clk 0:00:03]}  axb3+ {[%clk 0:01:06]} 49. Kxb3 {[%clk 0:00:04]}  Rd3 {[%clk 0:01:05]} 50. a4 {[%clk 0:00:05]}  c4+ {[%clk 0:01:01]} 51. Kb2 {[%clk 0:00:03]}  Kd6 {[%clk 0:00:59]} 52. Ree2 {[%clk 0:00:02]}  Rhxh3 {[%clk 0:00:56]} 53. a5 {[%clk 0:00:01]}  Kc5 {[%clk 0:00:56]} 54. Ka3 {[%clk 0:00:01]}  Rh1 {[%clk 0:00:56]} 0-1


[Site "https://www.chess.com"]